[Event "*** SCC Grand Prix: Titled Tuesday Blitz"]
[Site "Chess.com"]
[Date "2020.07.21"]
[Round "4"]
[White "Duhless"]
[Black "Kobalia"]
[Result "1-0"]
[WhiteElo "2965"]
[BlackElo "2754"]
[TimeControl "180+1"]
[EndTime "10:38:52 PDT"]
[Termination "Duhless won on time"]

1. c4 {[%clk 0:02:12.6]} 1... c6 {[%clk 0:02:56.2]} 2. Nf3 {[%clk 0:02:10.3]}
2... d5 {[%clk 0:02:57.1]} 3. d4 {[%clk 0:02:09]} 3... Nf6 {[%clk 0:02:56.5]} 4.
Nc3 {[%clk 0:02:08]} 4... a6 {[%clk 0:02:47.2]} 5. c5 {[%clk 0:02:07]} 5... g6
{[%clk 0:02:44.4]} 6. g3 {[%clk 0:02:05.9]} 6... Bg7 {[%clk 0:02:43.8]} 7. Bg2
{[%clk 0:02:06.4]} 7... O-O {[%clk 0:02:43.7]} 8. O-O {[%clk 0:02:07]} 8... Bf5
{[%clk 0:02:40.4]} 9. Qb3 {[%clk 0:02:04.1]} 9... Qc8 {[%clk 0:02:37.3]} 10. Bf4
{[%clk 0:02:01.4]} 10... Ne4 {[%clk 0:02:32.8]} 11. Rfe1 {[%clk 0:01:51.6]}
11... Nd7 {[%clk 0:02:26.7]} 12. Rac1 {[%clk 0:01:46.6]} 12... Re8 {[%clk
0:02:25.8]} 13. Qa3 {[%clk 0:01:37.1]} 13... e5 {[%clk 0:02:17.6]} 14. Nxe5
{[%clk 0:01:32.9]} 14... Nxe5 {[%clk 0:02:17.2]} 15. Bxe5 {[%clk 0:01:31.2]}
15... Bxe5 {[%clk 0:02:16.3]} 16. dxe5 {[%clk 0:01:30.1]} 16... Rxe5 {[%clk
0:02:15.9]} 17. Qb4 {[%clk 0:01:19]} 17... Qc7 {[%clk 0:02:11.4]} 18. Qd4 {[%clk
0:01:09.2]} 18... Rae8 {[%clk 0:02:09.2]} 19. Bxe4 {[%clk 0:01:07.7]} 19... Bxe4
{[%clk 0:02:04.2]} 20. h4 {[%clk 0:01:07]} 20... g5 {[%clk 0:01:40.2]} 21. hxg5
{[%clk 0:00:55.9]} 21... Rxg5 {[%clk 0:01:39.6]} 22. Qe3 {[%clk 0:00:53.6]}
22... Rh5 {[%clk 0:01:27.3]} 23. Nxe4 {[%clk 0:00:52.7]} 23... Rxe4 {[%clk
0:01:27.1]} 24. Qf3 {[%clk 0:00:52.6]} 24... Qe5 {[%clk 0:01:23.5]} 25. Kg2
{[%clk 0:00:21.1]} 25... Rf5 {[%clk 0:00:51.4]} 26. Qb3 {[%clk 0:00:20.7]} 26...
Rxe2 {[%clk 0:00:36.7]} 27. Rxe2 {[%clk 0:00:21.6]} 27... Qxe2 {[%clk
0:00:36.3]} 28. Rf1 {[%clk 0:00:22.5]} 28... d4 {[%clk 0:00:25.1]} 29. Kg1
{[%clk 0:00:15.1]} 29... d3 {[%clk 0:00:20.1]} 30. Qxb7 {[%clk 0:00:14.5]} 30...
Qe4 {[%clk 0:00:18.7]} 31. f3 {[%clk 0:00:04.2]} 31... Rxf3 {[%clk 0:00:11.9]}
32. Rxf3 {[%clk 0:00:03.9]} 32... Qxf3 {[%clk 0:00:11.9]} 33. Qb8+ {[%clk
0:00:04.5]} 33... Kg7 {[%clk 0:00:11.4]} 34. Qe5+ {[%clk 0:00:05.4]} 34... Kg6
{[%clk 0:00:07.3]} 35. b4 {[%clk 0:00:04.7]} 35... Qd1+ {[%clk 0:00:05.4]} 36.
Kf2 {[%clk 0:00:03.9]} 36... Qd2+ {[%clk 0:00:04.6]} 37. Kf3 {[%clk 0:00:03.5]}
37... Qg5 {[%clk 0:00:01.1]} 38. Qe4+ {[%clk 0:00:01.6]} 1-0

[Event "*** SCC Grand Prix: Titled Tuesday Blitz"]
[Site "Chess.com"]
[Date "2020.07.21"]
[Round "4"]
[White "vova-79"]
[Black "reutik"]
[Result "1-0"]
[WhiteElo "2495"]
[BlackElo "2318"]
[TimeControl "180+1"]
[EndTime "10:38:52 PDT"]
[Termination "vova-79 won on time"]

1. d4 {[%clk 0:03:00.9]} 1... d5 {[%clk 0:02:59.2]} 2. c4 {[%clk 0:03:00.1]}
2... c6 {[%clk 0:02:59.7]} 3. Nc3 {[%clk 0:02:59.4]} 3... Nf6 {[%clk 0:02:58.4]}
4. e3 {[%clk 0:02:57.9]} 4... e6 {[%clk 0:02:57.3]} 5. Nf3 {[%clk 0:02:57.7]}
5... Nbd7 {[%clk 0:02:57.3]} 6. Qc2 {[%clk 0:02:57.6]} 6... Bd6 {[%clk
0:02:56.3]} 7. b3 {[%clk 0:02:57.6]} 7... Qe7 {[%clk 0:02:52]} 8. Bb2 {[%clk
0:02:55.8]} 8... O-O {[%clk 0:02:51.8]} 9. Be2 {[%clk 0:02:54.7]} 9... Re8
{[%clk 0:02:50.5]} 10. O-O {[%clk 0:02:53.9]} 10... dxc4 {[%clk 0:02:49.1]} 11.
bxc4 {[%clk 0:02:54.8]} 11... e5 {[%clk 0:02:49.5]} 12. Rad1 {[%clk 0:02:54]}
12... exd4 {[%clk 0:02:45]} 13. exd4 {[%clk 0:02:54.9]} 13... Nf8 {[%clk
0:02:44.9]} 14. Rfe1 {[%clk 0:02:50.8]} 14... Bg4 {[%clk 0:02:41.4]} 15. Ne5
{[%clk 0:02:49.2]} 15... Bxe2 {[%clk 0:02:37.1]} 16. Nxe2 {[%clk 0:02:46.3]}
16... Bxe5 {[%clk 0:02:16.8]} 17. dxe5 {[%clk 0:02:43.8]} 17... N6d7 {[%clk
0:02:16.8]} 18. f4 {[%clk 0:02:37.5]} 18... Rad8 {[%clk 0:02:14.5]} 19. Ng3
{[%clk 0:02:35.7]} 19... Nb6 {[%clk 0:02:08.7]} 20. Ne4 {[%clk 0:02:17.4]} 20...
Rxd1 {[%clk 0:01:48.8]} 21. Rxd1 {[%clk 0:02:12.8]} 21... Rd8 {[%clk 0:01:48.5]}
22. Nd6 {[%clk 0:02:08.4]} 22... Nc8 {[%clk 0:01:39.5]} 23. c5 {[%clk
0:01:57.1]} 23... Nxd6 {[%clk 0:01:24.4]} 24. cxd6 {[%clk 0:01:51.5]} 24... Qe6
{[%clk 0:01:23.2]} 25. Ba1 {[%clk 0:01:34.1]} 25... f5 {[%clk 0:01:03.8]} 26.
exf6 {[%clk 0:00:50.6]} 26... Rxd6 {[%clk 0:01:03.5]} 27. fxg7 {[%clk
0:00:44.3]} 27... Rxd1+ {[%clk 0:00:57.1]} 28. Qxd1 {[%clk 0:00:43.4]} 28... Nd7
{[%clk 0:00:55.9]} 29. h3 {[%clk 0:00:36.9]} 29... b6 {[%clk 0:00:47.9]} 30. Kh2
{[%clk 0:00:34.2]} 30... Nf6 {[%clk 0:00:41.7]} 31. Qd8+ {[%clk 0:00:24.6]}
31... Kxg7 {[%clk 0:00:41.2]} 32. Qc7+ {[%clk 0:00:22.3]} 32... Kg6 {[%clk
0:00:34.6]} 33. Qxa7 {[%clk 0:00:20.5]} 33... c5 {[%clk 0:00:32.7]} 34. Qc7
{[%clk 0:00:17.6]} 34... h5 {[%clk 0:00:16.9]} 35. Be5 {[%clk 0:00:16.6]} 35...
Kf5 {[%clk 0:00:09.3]} 36. a4 {[%clk 0:00:15.6]} 36... Nd7 {[%clk 0:00:03.6]}
37. Qd8 {[%clk 0:00:13.6]} 37... Nxe5 {[%clk 0:00:02.8]} 38. Qg5+ {[%clk
0:00:12]} 38... Ke4 {[%clk 0:00:02.7]} 39. fxe5 {[%clk 0:00:11.8]} 39... Qxe5+
{[%clk 0:00:03.1]} 40. Qxe5+ {[%clk 0:00:11.8]} 40... Kxe5 {[%clk 0:00:03.9]}
41. Kg3 {[%clk 0:00:11]} 41... c4 {[%clk 0:00:02]} 42. Kf3 {[%clk 0:00:11]} 1-0

[Event "*** SCC Grand Prix: Titled Tuesday Blitz"]
[Site "Chess.com"]
[Date "2020.07.21"]
[Round "4"]
[White "Rodalquilar"]
[Black "PotapovaM"]
[Result "1-0"]
[WhiteElo "2639"]
[BlackElo "2465"]
[TimeControl "180+1"]
[EndTime "10:38:53 PDT"]
[Termination "Rodalquilar won by checkmate"]

1. d4 {[%clk 0:03:00.9]} 1... Nf6 {[%clk 0:02:59.8]} 2. Bf4 {[%clk 0:03:01.2]}
2... g6 {[%clk 0:02:59.8]} 3. e3 {[%clk 0:03:01.8]} 3... Bg7 {[%clk 0:02:59.9]}
4. Nf3 {[%clk 0:03:02.4]} 4... O-O {[%clk 0:03:00.5]} 5. Be2 {[%clk 0:03:03]}
5... d6 {[%clk 0:03:00.4]} 6. O-O {[%clk 0:03:03.7]} 6... Nbd7 {[%clk 0:03:01]}
7. h3 {[%clk 0:03:03.8]} 7... b6 {[%clk 0:03:01.5]} 8. Bh2 {[%clk 0:03:03.9]}
8... Bb7 {[%clk 0:03:01.8]} 9. a4 {[%clk 0:03:04.6]} 9... a5 {[%clk 0:03:00.9]}
10. Nbd2 {[%clk 0:03:04.4]} 10... Qe8 {[%clk 0:03:00.8]} 11. Nc4 {[%clk
0:02:38.9]} 11... Ne4 {[%clk 0:02:59.5]} 12. Nfd2 {[%clk 0:02:30.2]} 12... Nxd2
{[%clk 0:02:58.5]} 13. Nxd2 {[%clk 0:02:31.1]} 13... e5 {[%clk 0:02:52.1]} 14.
c3 {[%clk 0:02:31.5]} 14... Qe7 {[%clk 0:02:49.5]} 15. Bf3 {[%clk 0:02:31.9]}
15... e4 {[%clk 0:02:40.1]} 16. Be2 {[%clk 0:02:31.9]} 16... f5 {[%clk
0:02:09.4]} 17. Qb3+ {[%clk 0:02:32]} 17... Kh8 {[%clk 0:02:08.7]} 18. Bc4
{[%clk 0:02:32.3]} 18... Bh6 {[%clk 0:02:00.7]} 19. Bd5 {[%clk 0:02:31.3]} 19...
c6 {[%clk 0:01:58.2]} 20. Be6 {[%clk 0:02:30.8]} 20... d5 {[%clk 0:01:49.8]} 21.
Bxd7 {[%clk 0:02:30.6]} 21... Qxd7 {[%clk 0:01:50.7]} 22. Qxb6 {[%clk
0:02:30.2]} 22... f4 {[%clk 0:01:47.1]} 23. Bxf4 {[%clk 0:02:18.8]} 23... Bxf4
{[%clk 0:01:48]} 24. exf4 {[%clk 0:02:19.3]} 24... Rxf4 {[%clk 0:01:48.9]} 25.
Nb3 {[%clk 0:02:18.6]} 25... Ra6 {[%clk 0:01:24]} 26. Qc5 {[%clk 0:01:25.1]}
26... Bc8 {[%clk 0:01:20.4]} 27. Rae1 {[%clk 0:01:10.4]} 27... Ra8 {[%clk
0:01:05.2]} 28. f3 {[%clk 0:01:09.9]} 28... Ba6 {[%clk 0:01:02.2]} 29. Rf2
{[%clk 0:01:04.2]} 29... exf3 {[%clk 0:01:02]} 30. Re7 {[%clk 0:01:00.3]} 30...
Qf5 {[%clk 0:00:34.7]} 31. Qxc6 {[%clk 0:00:43.8]} 31... Rf8 {[%clk 0:00:34.1]}
32. Qc7 {[%clk 0:00:32.8]} 32... Qh5 {[%clk 0:00:13.1]} 33. Rxf3 {[%clk
0:00:19.3]} 33... Rxf3 {[%clk 0:00:11.5]} 34. gxf3 {[%clk 0:00:19.8]} 34... Qg5+
{[%clk 0:00:03.5]} 35. Kh2 {[%clk 0:00:18.2]} 35... Qh5 {[%clk 0:00:02.1]} 36.
Nc5 {[%clk 0:00:09.9]} 36... Bc4 {[%clk 0:00:01.7]} 37. Ne6 {[%clk 0:00:06.3]}
37... Rg8 {[%clk 0:00:02.4]} 38. Nf4 {[%clk 0:00:04.1]} 38... Qh4 {[%clk
0:00:02]} 39. Qe5+ {[%clk 0:00:04]} 39... Rg7 {[%clk 0:00:01.9]} 40. Qxg7#
{[%clk 0:00:04.3]} 1-0

[Event "*** SCC Grand Prix: Titled Tuesday Blitz"]
[Site "Chess.com"]
[Date "2020.07.21"]
[Round "4"]
[White "Alopekos"]
[Black "vovachesss"]
[Result "1-0"]
[WhiteElo "2358"]
[BlackElo "2589"]
[TimeControl "180+1"]
[EndTime "10:38:53 PDT"]
[Termination "Alopekos won by checkmate"]

1. e4 {[%clk 0:03:00.9]} 1... c6 {[%clk 0:02:59.3]} 2. d4 {[%clk 0:03:00.6]}
2... d5 {[%clk 0:03:00.2]} 3. Nd2 {[%clk 0:03:00.2]} 3... dxe4 {[%clk
0:03:00.4]} 4. Nxe4 {[%clk 0:03:01.1]} 4... Nf6 {[%clk 0:03:01.3]} 5. Nxf6+
{[%clk 0:03:01]} 5... exf6 {[%clk 0:03:02.2]} 6. Bc4 {[%clk 0:03:01.2]} 6... Bd6
{[%clk 0:03:02.8]} 7. Qe2+ {[%clk 0:03:01.7]} 7... Kf8 {[%clk 0:02:55.7]} 8. Nf3
{[%clk 0:02:59.7]} 8... h5 {[%clk 0:02:55.7]} 9. O-O {[%clk 0:02:53.6]} 9... h4
{[%clk 0:02:54.4]} 10. h3 {[%clk 0:02:41.7]} 10... g6 {[%clk 0:02:52.1]} 11. Re1
{[%clk 0:02:10.6]} 11... Kg7 {[%clk 0:02:50.8]} 12. Bb3 {[%clk 0:02:11]} 12...
a5 {[%clk 0:02:49.8]} 13. c4 {[%clk 0:01:52.2]} 13... Nd7 {[%clk 0:02:25.5]} 14.
c5 {[%clk 0:01:30]} 14... Bf8 {[%clk 0:01:42.4]} 15. Qc4 {[%clk 0:01:24.9]}
15... Ne5 {[%clk 0:00:34.2]} 16. dxe5 {[%clk 0:00:58.1]} 16... Be6 {[%clk
0:00:33.7]} 17. Qc3 {[%clk 0:00:42.7]} 17... f5 {[%clk 0:00:20.7]} 18. Bg5
{[%clk 0:00:31.7]} 18... Be7 {[%clk 0:00:20.2]} 19. Rad1 {[%clk 0:00:32.1]}
19... Qf8 {[%clk 0:00:19.2]} 20. Bxe6 {[%clk 0:00:26.3]} 20... fxe6 {[%clk
0:00:19.3]} 21. Rd7 {[%clk 0:00:26.8]} 21... Re8 {[%clk 0:00:19.6]} 22. Bf6+
{[%clk 0:00:22.8]} 22... Kh7 {[%clk 0:00:15.7]} 23. Ng5+ {[%clk 0:00:21.4]}
23... Kh6 {[%clk 0:00:10.9]} 24. Nxe6 {[%clk 0:00:15.5]} 24... Qg8 {[%clk
0:00:09.1]} 25. Qe3+ {[%clk 0:00:09.9]} 25... g5 {[%clk 0:00:08.6]} 26. Rxe7
{[%clk 0:00:09.4]} 26... Rxe7 {[%clk 0:00:07.6]} 27. Bxg5+ {[%clk 0:00:09.1]}
27... Kh7 {[%clk 0:00:05.7]} 28. Bxe7 {[%clk 0:00:08.6]} 28... Qxe6 {[%clk
0:00:05.7]} 29. Bf6 {[%clk 0:00:08.6]} 29... Rg8 {[%clk 0:00:05.9]} 30. Qf3
{[%clk 0:00:08.7]} 30... Qe8 {[%clk 0:00:04.4]} 31. Qxf5+ {[%clk 0:00:08.7]}
31... Qg6 {[%clk 0:00:03.6]} 32. Qxg6+ {[%clk 0:00:08.8]} 32... Kxg6 {[%clk
0:00:03.5]} 33. Bxh4 {[%clk 0:00:08.3]} 33... Kf5 {[%clk 0:00:03.7]} 34. e6
{[%clk 0:00:08.1]} 34... Re8 {[%clk 0:00:03.7]} 35. e7 {[%clk 0:00:08.6]} 35...
Kg6 {[%clk 0:00:04.1]} 36. g4 {[%clk 0:00:08.6]} 36... Kf7 {[%clk 0:00:05]} 37.
f4 {[%clk 0:00:08.9]} 37... Rh8 {[%clk 0:00:05.5]} 38. Bg3 {[%clk 0:00:07.7]}
38... Ke8 {[%clk 0:00:06.4]} 39. f5 {[%clk 0:00:07.7]} 39... Rh7 {[%clk
0:00:05.7]} 40. f6 {[%clk 0:00:07.7]} 40... a4 {[%clk 0:00:06.6]} 41. g5 {[%clk
0:00:08]} 41... Rh5 {[%clk 0:00:06.9]} 42. h4 {[%clk 0:00:07.8]} 42... Rh7
{[%clk 0:00:06.6]} 43. g6 {[%clk 0:00:05.4]} 43... Rh6 {[%clk 0:00:07.5]} 44.
f7+ {[%clk 0:00:05.8]} 44... Kd7 {[%clk 0:00:08.1]} 45. e8=Q# {[%clk 0:00:06.3]}
1-0

[Event "*** SCC Grand Prix: Titled Tuesday Blitz"]
[Site "Chess.com"]
[Date "2020.07.21"]
[Round "4"]
[White "awesomevishesh"]
[Black "Shuvalov"]
[Result "1-0"]
[WhiteElo "2340"]
[BlackElo "2504"]
[TimeControl "180+1"]
[EndTime "10:38:53 PDT"]
[Termination "awesomevishesh won by resignation"]

1. e4 {[%clk 0:02:59.9]} 1... e6 {[%clk 0:02:48.1]} 2. d4 {[%clk 0:02:59.1]}
2... d5 {[%clk 0:02:47.8]} 3. Nc3 {[%clk 0:02:59]} 3... Bb4 {[%clk 0:02:46.9]}
4. exd5 {[%clk 0:02:49.2]} 4... exd5 {[%clk 0:02:46.4]} 5. Bd3 {[%clk
0:02:47.2]} 5... Nc6 {[%clk 0:02:45.2]} 6. Nf3 {[%clk 0:02:45.2]} 6... Bg4
{[%clk 0:02:44.1]} 7. Be3 {[%clk 0:02:38]} 7... Nge7 {[%clk 0:02:40.6]} 8. h3
{[%clk 0:02:35.6]} 8... Bh5 {[%clk 0:02:38.2]} 9. O-O {[%clk 0:02:34.1]} 9...
Bg6 {[%clk 0:02:24.6]} 10. Ne2 {[%clk 0:02:30.5]} 10... Bd6 {[%clk 0:02:21]} 11.
Nf4 {[%clk 0:02:05.7]} 11... O-O {[%clk 0:01:43.7]} 12. c3 {[%clk 0:01:53.5]}
12... Re8 {[%clk 0:01:09.9]} 13. Nxg6 {[%clk 0:01:49.3]} 13... Nxg6 {[%clk
0:01:00.7]} 14. Qd2 {[%clk 0:01:48.9]} 14... Nce7 {[%clk 0:00:49.5]} 15. h4
{[%clk 0:01:40.8]} 15... h6 {[%clk 0:00:38.3]} 16. h5 {[%clk 0:01:36.3]} 16...
Nf8 {[%clk 0:00:37.1]} 17. Rae1 {[%clk 0:01:20.6]} 17... Nd7 {[%clk 0:00:36.1]}
18. Bxh6 {[%clk 0:00:51.4]} 18... gxh6 {[%clk 0:00:28.4]} 19. Qxh6 {[%clk
0:00:51]} 19... Nf8 {[%clk 0:00:19]} 20. Ng5 {[%clk 0:00:49.3]} 20... Neg6
{[%clk 0:00:08.7]} 21. hxg6 {[%clk 0:00:40.6]} 21... fxg6 {[%clk 0:00:09.6]} 22.
Bxg6 {[%clk 0:00:34.6]} 22... Re7 {[%clk 0:00:07.3]} 23. Rxe7 {[%clk 0:00:26.7]}
23... Qxe7 {[%clk 0:00:08.2]} 24. Bf7+ {[%clk 0:00:26.8]} 24... Qxf7 {[%clk
0:00:07.5]} 25. Nxf7 {[%clk 0:00:27.1]} 25... Kxf7 {[%clk 0:00:08.4]} 26. Qh5+
{[%clk 0:00:21.9]} 26... Ke7 {[%clk 0:00:07.8]} 27. Re1+ {[%clk 0:00:21.7]}
27... Kd7 {[%clk 0:00:08]} 28. Qxd5 {[%clk 0:00:20.9]} 28... Re8 {[%clk
0:00:06.7]} 29. Qf7+ {[%clk 0:00:20.3]} 29... Re7 {[%clk 0:00:06.6]} 30. Rxe7+
{[%clk 0:00:19.7]} 30... Bxe7 {[%clk 0:00:06.6]} 31. g4 {[%clk 0:00:19.9]} 31...
Ne6 {[%clk 0:00:06.3]} 32. d5 {[%clk 0:00:18.9]} 32... Ng5 {[%clk 0:00:06.2]}
33. Qf5+ {[%clk 0:00:19]} 33... Kd6 {[%clk 0:00:05.1]} 34. Kg2 {[%clk
0:00:19.3]} 34... c6 {[%clk 0:00:05]} 35. dxc6 {[%clk 0:00:18.9]} 35... bxc6
{[%clk 0:00:05.9]} 36. f4 {[%clk 0:00:17.4]} 36... Ne6 {[%clk 0:00:06.1]} 37.
Qe5+ {[%clk 0:00:17.9]} 37... Kd7 {[%clk 0:00:06.1]} 38. f5 {[%clk 0:00:18]}
38... Nc5 {[%clk 0:00:05.1]} 39. f6 {[%clk 0:00:17.3]} 39... Bd6 {[%clk
0:00:05.5]} 40. Qf5+ {[%clk 0:00:17.3]} 40... Ne6 {[%clk 0:00:05.3]} 41. g5
{[%clk 0:00:16.7]} 41... Bf8 {[%clk 0:00:04.7]} 42. g6 {[%clk 0:00:16.8]} 42...
Kd6 {[%clk 0:00:04.9]} 43. g7 {[%clk 0:00:14.8]} 43... Bxg7 {[%clk 0:00:05.4]}
44. fxg7 {[%clk 0:00:14.9]} 44... Nxg7 {[%clk 0:00:06.3]} 45. Qf8+ {[%clk
0:00:14.4]} 45... Kd7 {[%clk 0:00:05.8]} 46. Qxg7+ {[%clk 0:00:14.6]} 1-0

[Event "*** SCC Grand Prix: Titled Tuesday Blitz"]
[Site "Chess.com"]
[Date "2020.07.21"]
[Round "4"]
[White "RaphCamora"]
[Black "kingmonkey2006"]
[Result "0-1"]
[WhiteElo "2453"]
[BlackElo "2622"]
[TimeControl "180+1"]
[EndTime "10:38:55 PDT"]
[Termination "kingmonkey2006 won on time"]

1. Nf3 {[%clk 0:03:00.9]} 1... Nf6 {[%clk 0:02:59.8]} 2. g3 {[%clk 0:02:59.9]}
2... e6 {[%clk 0:03:00.2]} 3. Bg2 {[%clk 0:02:55.1]} 3... d5 {[%clk 0:03:01.1]}
4. O-O {[%clk 0:02:53.1]} 4... Be7 {[%clk 0:03:02]} 5. b3 {[%clk 0:02:53.4]}
5... O-O {[%clk 0:03:02.9]} 6. Bb2 {[%clk 0:02:54]} 6... c5 {[%clk 0:03:03.4]}
7. c4 {[%clk 0:02:54.6]} 7... Nc6 {[%clk 0:03:02.7]} 8. e3 {[%clk 0:02:54.8]}
8... b6 {[%clk 0:03:02.3]} 9. Qe2 {[%clk 0:02:54.8]} 9... Ba6 {[%clk 0:03:02]}
10. Nc3 {[%clk 0:02:52.9]} 10... Rc8 {[%clk 0:03:00.4]} 11. d3 {[%clk 0:02:49]}
11... Bb7 {[%clk 0:02:54.4]} 12. Rfd1 {[%clk 0:02:44.6]} 12... d4 {[%clk
0:02:54.3]} 13. exd4 {[%clk 0:02:40.6]} 13... cxd4 {[%clk 0:02:48.2]} 14. Nb5
{[%clk 0:02:01.2]} 14... Bc5 {[%clk 0:02:45.1]} 15. b4 {[%clk 0:01:46.5]} 15...
Nxb4 {[%clk 0:02:42.9]} 16. Nbxd4 {[%clk 0:01:37.5]} 16... Nc6 {[%clk
0:02:20.2]} 17. Nb3 {[%clk 0:01:35.5]} 17... Be7 {[%clk 0:02:19.3]} 18. d4
{[%clk 0:01:33.3]} 18... Ba6 {[%clk 0:02:19]} 19. Rac1 {[%clk 0:01:31.6]} 19...
Rc7 {[%clk 0:02:13.2]} 20. a3 {[%clk 0:01:26.7]} 20... Qc8 {[%clk 0:02:11.8]}
21. Qe3 {[%clk 0:01:17]} 21... Nb8 {[%clk 0:02:07.3]} 22. Ne5 {[%clk 0:01:15]}
22... Nbd7 {[%clk 0:02:04.8]} 23. Nxd7 {[%clk 0:01:00.5]} 23... Qxd7 {[%clk
0:02:00.4]} 24. Nd2 {[%clk 0:00:59]} 24... b5 {[%clk 0:01:58.3]} 25. c5 {[%clk
0:00:35.5]} 25... Nd5 {[%clk 0:01:55.2]} 26. Qb3 {[%clk 0:00:33.7]} 26... Bb7
{[%clk 0:01:53]} 27. Nf3 {[%clk 0:00:32.2]} 27... f6 {[%clk 0:01:52.9]} 28. Re1
{[%clk 0:00:30.4]} 28... Re8 {[%clk 0:01:52]} 29. Re2 {[%clk 0:00:28.6]} 29...
Bf8 {[%clk 0:01:52]} 30. Rce1 {[%clk 0:00:27.9]} 30... Bc6 {[%clk 0:01:51.9]}
31. Bh3 {[%clk 0:00:26.7]} 31... Kf7 {[%clk 0:00:40.8]} 32. Rxe6 {[%clk
0:00:26.5]} 32... Rxe6 {[%clk 0:00:41.7]} 33. Bxe6+ {[%clk 0:00:25.6]} 33...
Qxe6 {[%clk 0:00:42.6]} 34. Rxe6 {[%clk 0:00:25.7]} 34... Kxe6 {[%clk
0:00:43.5]} 35. Bc1 {[%clk 0:00:23.5]} 35... Kf7 {[%clk 0:00:41.4]} 36. Bf4
{[%clk 0:00:21.9]} 36... Rd7 {[%clk 0:00:38.5]} 37. Bd6 {[%clk 0:00:18.1]} 37...
Be7 {[%clk 0:00:35.9]} 38. Bxe7 {[%clk 0:00:17.1]} 38... Kxe7 {[%clk 0:00:36.8]}
39. Qd3 {[%clk 0:00:15.8]} 39... g6 {[%clk 0:00:36.7]} 40. Qe4+ {[%clk
0:00:15.1]} 40... Kf7 {[%clk 0:00:37.2]} 41. Qg4 {[%clk 0:00:12.9]} 41... h5
{[%clk 0:00:35.1]} 42. Qh3 {[%clk 0:00:08.4]} 42... Nc3 {[%clk 0:00:29.3]} 43.
d5 {[%clk 0:00:07.4]} 43... Rxd5 {[%clk 0:00:25.5]} 44. Qc8 {[%clk 0:00:05.6]}
44... Rxc5 {[%clk 0:00:20.3]} 45. Qc7+ {[%clk 0:00:04.9]} 45... Ke6 {[%clk
0:00:20.9]} 46. Qxa7 {[%clk 0:00:04.4]} 46... Ne2+ {[%clk 0:00:19]} 47. Kf1
{[%clk 0:00:03.9]} 47... Rc2 {[%clk 0:00:15.4]} 0-1

[Event "*** SCC Grand Prix: Titled Tuesday Blitz"]
[Site "Chess.com"]
[Date "2020.07.21"]
[Round "4"]
[White "FloMaster111"]
[Black "OhanyanEminChess"]
[Result "1-0"]
[WhiteElo "2273"]
[BlackElo "2444"]
[TimeControl "180+1"]
[EndTime "10:38:55 PDT"]
[Termination "FloMaster111 won by resignation"]

1. d4 {[%clk 0:02:59.7]} 1... Nf6 {[%clk 0:02:59.6]} 2. Nf3 {[%clk 0:02:59.6]}
2... c5 {[%clk 0:02:58.8]} 3. e3 {[%clk 0:02:59.4]} 3... d5 {[%clk 0:02:58.7]}
4. dxc5 {[%clk 0:02:59.2]} 4... Nc6 {[%clk 0:02:57.8]} 5. Be2 {[%clk 0:02:58.3]}
5... e5 {[%clk 0:02:57.7]} 6. b4 {[%clk 0:02:58.4]} 6... e4 {[%clk 0:02:52]} 7.
Nd4 {[%clk 0:02:55.7]} 7... Nxb4 {[%clk 0:02:51.9]} 8. Nb3 {[%clk 0:02:55.4]}
8... Nc6 {[%clk 0:02:49.1]} 9. Nc3 {[%clk 0:02:53.3]} 9... Be7 {[%clk
0:02:46.3]} 10. O-O {[%clk 0:02:52.3]} 10... Be6 {[%clk 0:02:45.6]} 11. a4
{[%clk 0:02:52]} 11... O-O {[%clk 0:02:45.2]} 12. Ba3 {[%clk 0:02:51.9]} 12...
Rc8 {[%clk 0:02:44.9]} 13. Nb5 {[%clk 0:02:51.5]} 13... a6 {[%clk 0:02:39.7]}
14. Nd6 {[%clk 0:02:50.9]} 14... Rc7 {[%clk 0:02:37.1]} 15. c4 {[%clk
0:02:35.2]} 15... dxc4 {[%clk 0:02:34.8]} 16. Bxc4 {[%clk 0:02:30.5]} 16... Bxc4
{[%clk 0:02:33.4]} 17. Nxc4 {[%clk 0:02:30.5]} 17... Rd7 {[%clk 0:02:33.9]} 18.
Qe2 {[%clk 0:02:23.1]} 18... Nd5 {[%clk 0:02:29.4]} 19. Bb2 {[%clk 0:02:18.8]}
19... Bf6 {[%clk 0:02:28]} 20. Rfd1 {[%clk 0:02:11]} 20... Qe7 {[%clk
0:01:57.7]} 21. Rac1 {[%clk 0:01:58.8]} 21... Rfd8 {[%clk 0:01:56.2]} 22. Nd6
{[%clk 0:01:51]} 22... Bxb2 {[%clk 0:01:50.1]} 23. Qxb2 {[%clk 0:01:46.8]} 23...
Ndb4 {[%clk 0:01:50.3]} 24. Rb1 {[%clk 0:01:32.3]} 24... Nd3 {[%clk 0:01:49.3]}
25. Qc2 {[%clk 0:01:24]} 25... Nxc5 {[%clk 0:01:48.3]} 26. Nxc5 {[%clk
0:00:41.1]} 26... Rxd6 {[%clk 0:01:47.3]} 27. Rxd6 {[%clk 0:00:35.7]} 27... Rxd6
{[%clk 0:01:45.5]} 28. Nxb7 {[%clk 0:00:34.9]} 28... Rg6 {[%clk 0:00:20.6]} 29.
Na5 {[%clk 0:00:34.1]} 29... h5 {[%clk 0:00:14.5]} 30. Nxc6 {[%clk 0:00:33.5]}
30... Qg5 {[%clk 0:00:14.7]} 31. g3 {[%clk 0:00:32.7]} 31... h4 {[%clk
0:00:14.5]} 32. Qxe4 {[%clk 0:00:32]} 32... hxg3 {[%clk 0:00:14.6]} 33. hxg3
{[%clk 0:00:32.9]} 33... f5 {[%clk 0:00:07.8]} 34. Rb8+ {[%clk 0:00:31.3]} 34...
Kh7 {[%clk 0:00:08.3]} 35. Qd5 {[%clk 0:00:23.1]} 35... Qh5 {[%clk 0:00:03.7]}
36. Qg8+ {[%clk 0:00:22.3]} 36... Kh6 {[%clk 0:00:04.4]} 37. Qh8+ {[%clk
0:00:22.2]} 37... Kg5 {[%clk 0:00:05.1]} 38. Qxh5+ {[%clk 0:00:21.9]} 38... Kxh5
{[%clk 0:00:06]} 39. Rh8+ {[%clk 0:00:22.1]} 39... Kg5 {[%clk 0:00:05.1]} 40.
Ne5 {[%clk 0:00:17.6]} 40... Rb6 {[%clk 0:00:03.7]} 41. f4+ {[%clk 0:00:17.2]}
41... Kf6 {[%clk 0:00:03.2]} 42. Nd7+ {[%clk 0:00:17.6]} 1-0